fUSD/lending_fUSD_20240730
["ID","MTS","AMOUNT","RATE_DAILY","PERIOD"]
[333672354,1722336902337,-1000.0,0.00033217,30]
[333672355,1722336902362,-1000.0,0.00033217,30]
[333672356,1722336902386,-1000.0,0.00033217,30]
[333672357,1722336902410,-1000.0,0.00033217,60]
[333672358,1722336902433,-1039.46,0.00033217,30]
[333672359,1722336902456,-529.90062837,0.00033217,60]
[333672360,1722336902479,-837.18947042,0.00033217,30]
[333672361,1722336902502,-1000.0,0.00033217,30]
[333672362,1722336902526,-1616.30796988,0.00033217,120]
[333672363,1722336902549,-820.03662956,0.00033217,30]
[333672364,1722336902572,-827.88000668,0.00033217,30]
[333672365,1722336902595,-891.74491022,0.00033217,30]
[333672366,1722336902618,-921.25114743,0.00033217,30]
[333672367,1722336902640,-947.86840398,0.00033217,120]
[333672368,1722336902664,-1111.76728648,0.00033217,120]
[333672369,1722336902687,-581.84195228,0.00033217,120]
[333672370,1722336902710,-847.39441617,0.00033217,30]
[333672371,1722336902733,-951.09414445,0.00033217,120]
[333672372,1722336902757,-2781.46322512,0.00033217,120]
[333672373,1722336902779,-1933.27577293,0.00033217,120]
[333672374,1722336902802,-1096.80602577,0.00033217,30]
[333672375,1722336902825,-283.69207422,0.00033217,60]
[333672376,1722336902848,-20286.0,0.00033217,120]
[333672377,1722336902872,-5100.0,0.00033217,31]
[333672378,1722336902895,-85349.69723637,0.00033217,120]
[333672379,1722336902918,-5000.0,0.00033217,120]
[333672380,1722336902941,-634.46938636,0.00033217,120]
[333672381,1722336902965,-526595.92299221,0.00033217,120]
[333672382,1722336902987,-30000.0,0.00033217,90]
[333672383,1722336903011,-30000.0,0.00033217,120]
[333672384,1722336903036,-30000.0,0.00033217,30]
[333672385,1722336903062,-22884.89380661,0.00033217,120]
[333672386,1722336903086,-1696.0,0.00033217,120]
[333672387,1722336903110,-482800.0,0.00033217,120]
[333672388,1722336903133,-16467.54218968,0.00033217,120]
[333672389,1722336903157,-10000.0,0.00033217,30]
[333672390,1722336903180,-2000.0,0.00033217,30]
[333672391,1722336903204,-1000.0,0.00033217,120]
[333672392,1722336903228,-2435.79397073,0.00033217,60]
[333672393,1722336903253,-1087.96612524,0.00033217,60]
[333672394,1722336903277,-2157.812015,0.00033217,120]
[333672395,1722336903302,-2097.57375024,0.00033217,120]
[333672396,1722336903329,-1200.0,0.00033217,120]
[333672397,1722336903358,-318.96276166,0.00033217,120]
[333672398,1722336903391,-904.00568198,0.00033217,120]
[333672399,1722336903421,-227.56333717,0.00033217,120]
[333672400,1722336903449,-1221.01974343,0.00033217,120]
[333672401,1722336903477,-4679.98425349,0.00033217,30]
[333672402,1722336903509,-264.0,0.00033217,120]
[333672403,1722336903539,-20074.0,0.00033217,120]
[333672404,1722336903572,-1402.23835534,0.00033217,30]
[333672405,1722336903604,-192.0,0.00033217,30]
[333672406,1722336903633,-3422.72638432,0.00033217,30]
[333672407,1722336903663,-82532.92216229,0.00033217,120]
[333672408,1722336903694,-32102.02089826,0.00033217,120]
[333672409,1722336903722,-5100.0,0.00033217,32]
[333672410,1722336903749,-1720.0,0.00033217,90]
[333672411,1722336903777,-277.21275314,0.00033217,60]
[333672412,1722336903806,-174.0,0.00033217,120]
[333672413,1722336903838,-8000.0,0.00033217,99]
[333672414,1722336903869,-197.75,0.00033217,120]
[333672415,1722336903901,-2000.0,0.00033217,30]
[333672416,1722336903930,-2000.0,0.00033217,30]
[333672417,1722336903956,-2000.0,0.00033217,30]
[333672418,1722336903983,-2000.0,0.00033217,30]
[333672419,1722336904014,-2000.0,0.00033217,30]
[333672420,1722336904046,-27249.1481013,0.00033217,120]
[333672421,1722336904074,-10371.25250466,0.00033217,120]
[333672422,1722336904106,-10000.0,0.00033217,30]
[333672423,1722336904135,-5876.34707924,0.00033217,30]
[333672424,1722336904162,-3904.53620668,0.00033217,30]
[333672425,1722336904189,-704243.25809836,0.00033217,30]
[333672426,1722336904217,-1678311.78132391,0.00033217,30]
[333672427,1722336904245,-3267.79942003,0.00033217,30]
[333672428,1722336904273,-2113.1038485,0.00033217,120]
[333672429,1722336904303,-2004.0,0.00033217,120]
[333672430,1722336904336,-1006.65437463,0.00033217,120]
[333672431,1722336904366,-266.50691158,0.00033217,60]
[333672432,1722336904395,-158.0,0.00033217,120]
[333672433,1722336904423,-1053.71786327,0.00033217,120]
[333672434,1722336904452,-192.0,0.00033217,30]
[333672435,1722336904482,-2000.0,0.00033217,30]
[333672436,1722336904511,-2000.0,0.00033217,30]
[333672437,1722336904541,-11456.488336,0.00033217,120]
[333672438,1722336904569,-2000.0,0.00033217,30]
[333672439,1722336904601,-102992.95407262,0.00033217,30]
[333672440,1722336904638,-317328.16754222,0.00033217,30]
[333672441,1722336904679,-78011.04,0.00033217,60]
[333672442,1722336904710,-2000.0,0.00033217,30]
[333672443,1722336904750,-2000.0,0.00033217,30]
[333672444,1722336904792,-41778.7841067,0.00033217,30]
[333672445,1722336904831,-1058.30768152,0.00033217,120]
[333672446,1722336904859,-398.52704946,0.00033217,60]
[333672447,1722336904904,-2570.56308421,0.00033217,120]
[333672448,1722336904935,-567.51754088,0.00033217,120]
[333672449,1722336904962,-150.78036782,0.00033217,120]
[333672450,1722336904996,-561.79511678,0.00033217,120]
[333672451,1722336905038,-50000.0,0.00033217,30]
[333672452,1722336905070,-50000.0,0.00033217,31]
[333672453,1722336905101,-50000.0,0.00033217,32]
[333672454,1722336905135,-50000.0,0.00033217,33]
[333672455,1722336905170,-50000.0,0.00033217,34]
[333672456,1722336905201,-1054.8955177,0.00033217,120]
[333672457,1722336905230,-1009.02632137,0.00033217,120]
[333672458,1722336905259,-1056.13679202,0.00033217,120]
[333672459,1722336905287,-987.0,0.00033217,30]
[333672460,1722336905319,-1735.02138281,0.00033217,120]
[333672461,1722336905347,-216.35589725,0.00033217,30]
[333672462,1722336905373,-157.16948644,0.00033217,30]
[333672463,1722336905402,-26594.35641622,0.00033217,120]
[333672464,1722336905430,-168.0,0.00033217,120]
[333672465,1722336905458,-5911.73581,0.00033217,30]
[333672466,1722336905486,-172310.41048745,0.00033217,30]
[333672467,1722336910957,-27910.82120378,0.00033217,30]
[333672468,1722336910982,-2114016.14325051,0.00033217,30]
[333672469,1722336911009,-510416.11825357,0.00033217,30]
[333672470,1722336911033,-2347656.91729214,0.00033217,30]
[333672471,1722336914562,-838151.77396416,0.00033217,30]
[333672472,1722336914586,-5651.05943401,0.00033217,45]
[333672473,1722336914610,-371.0,0.00033217,120]
[333672474,1722336914634,-3665.1101616,0.00033217,30]
[333672475,1722336914659,-2678.16981681,0.00033217,120]
[333672476,1722336914683,-154.26262217,0.00033217,30]
[333672477,1722336914706,-267001.44596301,0.00033217,30]
[333672478,1722336914730,-1790.60164919,0.00033217,120]
[333672479,1722336914755,-1265.11349917,0.00033217,120]
[333672480,1722336914782,-256.7102109,0.00033217,60]
[333672481,1722336914806,-1031.23043251,0.00033217,120]
[333672482,1722336914829,-20304.39791995,0.00033217,90]
[333672483,1722336914852,-11265.75350578,0.00033217,30]
[333672484,1722336914876,-2525.01575945,0.00033217,120]
[333672485,1722336914898,-355.42754821,0.00033217,31]
[333672486,1722336914922,-611.23044451,0.00033217,120]
[333672487,1722336914945,-2187.52539446,0.00033217,120]
[333672488,1722336914968,-1300.8904309,0.00033217,120]
[333672489,1722336914991,-207.71134329,0.00033217,120]
[333672490,1722336915014,-1473.94520728,0.00033217,120]
[333672491,1722336915038,-541.84537273,0.00033217,120]
[333672492,1722336915061,-255.20387129,0.00033217,120]
[333672493,1722336915084,-503.40854056,0.00033217,30]
[333672494,1722336915107,-2264.08779808,0.00033217,120]
[333672495,1722336915130,-1884.16880805,0.00033217,60]
[333672496,1722336915154,-695.00192,0.00033217,30]
[333672497,1722336915177,-330.22,0.00033217,120]
[333672498,1722336915201,-191.6600227,0.00033217,30]
[333672499,1722336915224,-3589.98573055,0.00033217,30]
[333672500,1722336915248,-39405.2461159,0.00033217,40]
[333672501,1722336915272,-21329.53665615,0.00033217,30]
[333672502,1722336915295,-353.12440526,0.00033217,120]
[333672503,1722336915321,-131056.55448067,0.00033217,30]
[333672504,1722336915344,-7004.50813683,0.00033217,30]
[333672505,1722336915368,-186.81606063,0.00033217,120]
[333672506,1722336915393,-2016.72353836,0.00033217,120]
[333672507,1722336915416,-2744.03833589,0.00033217,120]
[333672508,1722336915440,-423.31468388,0.00033217,120]
[333672509,1722336915464,-11391.49584199,0.00033217,120]
[333672510,1722336915489,-974.21815724,0.00033217,120]
[333672511,1722336915512,-288.45676452,0.00033217,31]
[333672512,1722336915536,-5247.68552814,0.00033217,120]
[333672513,1722336915560,-4341.14446459,0.00033217,30]
[333672514,1722336915583,-5275.26068469,0.00033217,30]
[333672515,1722336915606,-4497.66067734,0.00033217,120]
[333672516,1722336915630,-744.99453493,0.00033217,30]
[333672517,1722336915654,-154.05317065,0.00033217,30]
[333672518,1722336915678,-4437.89916143,0.00033217,120]
[333672519,1722336915701,-28784.53986081,0.00033217,120]
[333672520,1722336915725,-8689.756416,0.00033217,120]
[333672521,1722336915749,-153.94922292,0.00033217,30]
[333672522,1722336915774,-13046.29673756,0.00033217,120]
[333672523,1722336915798,-738.47757902,0.00033217,120]
[333672524,1722336915822,-1756.17293663,0.00033217,120]
[333672525,1722336915846,-182.9432717,0.00033217,30]
[333672526,1722336915871,-150.0,0.00033217,30]
[333672527,1722336915895,-5100.0,0.00033217,33]
[333672528,1722336915919,-23690.0,0.00033217,60]
[333672529,1722336915942,-351.50270896,0.00033217,51]
[333672530,1722336915966,-2968.08859361,0.00033217,35]
[333672531,1722336915989,-1211.38907528,0.00033217,30]
[333672532,1722336916167,-150000.0,0.00033217,30]
[333672533,1722336916192,-272.0,0.00033217,120]
[333672534,1722336916215,-875.067807,0.00033217,120]
[333672535,1722336916239,-2503.59,0.00033217,109]
[333672536,1722336916263,-2387.5,0.00033217,106]
[333672537,1722336916287,-9105.0,0.00033217,30]
[333672538,1722336916312,-4905.89772065,0.00033217,120]
[333672539,1722336916339,-10000.0,0.00033217,120]
[333672540,1722336916364,-10000.0,0.00033217,120]
[333672541,1722336916390,-10000.0,0.00033217,120]
[333672542,1722336916415,-10000.0,0.00033217,120]
[333672543,1722336916441,-1548923.9176,0.00033217,30]
[333672544,1722336916466,-950.5,0.00033217,30]
[333672545,1722336916492,-983.5,0.00033217,30]
[333672546,1722336916518,-983.5,0.00033217,30]
[333672547,1722336916542,-983.5,0.00033217,30]
[333672548,1722336916566,-4938.0,0.00033217,30]
[333672549,1722336916590,-551.0,0.00033217,30]
[333672550,1722336916614,-261.36000011,0.00033217,60]
[333672551,1722336916639,-166.0,0.00033217,30]
[333672552,1722336916665,-1155.0,0.00033217,120]
[333672553,1722336916689,-5193.54512624,0.00033217,30]
[333672554,1722336916715,-6542.87131125,0.00033217,30]
[333672555,1722336916740,-151.51968133,0.00033217,30]
[333672556,1722336916765,-2928.03316531,0.00033217,120]
[333672557,1722336916793,-2039.4473315,0.00033217,120]
[333672558,1722336916817,-1565.82569186,0.00033217,60]
[333672559,1722336916842,-618.55785611,0.00033217,30]
[333672560,1722336916866,-292.53213402,0.00033217,30]
[333672561,1722336916890,-848.70342399,0.00033217,120]
[333672562,1722336916914,-1696.47365872,0.00033217,30]
[333672563,1722336916938,-182.51031777,0.00033217,30]
[333672564,1722336916962,-157.22204584,0.00033217,30]
[333672565,1722336916987,-10000.0,0.00033217,120]
[333672566,1722336917013,-10000.0,0.00033217,120]
[333672567,1722336917038,-10000.0,0.00033217,120]
[333672568,1722336917063,-10000.0,0.00033217,120]
[333672569,1722336917088,-10000.0,0.00033217,120]
[333672570,1722336917113,-10000.0,0.00033217,120]
[333672571,1722336917137,-14523.71239528,0.00033217,30]
[333672572,1722336917161,-10000.0,0.00033217,120]
[333672573,1722336917187,-3947.0,0.00033217,120]
[333672574,1722336917211,-313.95612162,0.00033217,120]
[333672575,1722336917236,-793.0,0.00033217,30]
[333672576,1722336917261,-793.0,0.00033217,30]
[333672577,1722336917287,-793.0,0.00033217,30]
[333672578,1722336917315,-793.0,0.00033217,30]
[333672579,1722336917340,-793.0,0.00033217,30]
[333672580,1722336917366,-793.0,0.00033217,30]
[333672581,1722336917393,-793.0,0.00033217,30]
[333672582,1722336917417,-793.0,0.00033217,30]
[333672583,1722336917442,-793.0,0.00033217,30]
[333672584,1722336917467,-793.0,0.00033217,30]
[333672585,1722336917493,-793.0,0.00033217,30]
[333672586,1722336917518,-793.0,0.00033217,30]
[333672587,1722336917543,-793.0,0.00033217,30]
[333672588,1722336917567,-793.0,0.00033217,30]
[333672589,1722336917592,-793.0,0.00033217,30]
[333672590,1722336917617,-793.0,0.00033217,30]
[333672591,1722336917642,-793.0,0.00033217,30]
[333672592,1722336917667,-793.0,0.00033217,30]
[333672593,1722336917691,-793.0,0.00033217,30]
[333672594,1722336917716,-793.0,0.00033217,30]
[333672595,1722336917742,-793.0,0.00033217,30]
[333672596,1722336917767,-793.0,0.00033217,30]
[333672597,1722336917791,-793.0,0.00033217,30]
[333672598,1722336917816,-793.0,0.00033217,30]
[333672599,1722336917840,-793.0,0.00033217,30]
[333672600,1722336917864,-793.0,0.00033217,30]
[333672601,1722336917889,-793.0,0.00033217,30]
[333672602,1722336917914,-793.0,0.00033217,30]
[333672603,1722336917939,-793.0,0.00033217,30]
[333672604,1722336917964,-793.0,0.00033217,30]
[333672605,1722336917989,-793.0,0.00033217,30]
[333672606,1722336918013,-793.0,0.00033217,30]
[333672607,1722336918039,-793.0,0.00033217,30]
[333672608,1722336918064,-793.0,0.00033217,30]
[333672609,1722336918091,-793.0,0.00033217,30]
[333672610,1722336918115,-793.0,0.00033217,30]
[333672611,1722336918141,-793.0,0.00033217,30]
[333672612,1722336918167,-793.0,0.00033217,30]
[333672613,1722336918192,-793.0,0.00033217,30]
[333672614,1722336918218,-826.68791313,0.00033217,30]
[333672615,1722336918245,-198.0518838,0.00033217,30]
[333672616,1722336918271,-1399.12043348,0.00033217,30]
[333672617,1722336918299,-10000.0,0.00033217,120]
[333672618,1722336918327,-10000.0,0.00033217,120]
[333672619,1722336918351,-2000.0,0.00033217,30]
[333672620,1722336918378,-250000.0,0.00033217,30]
[333672621,1722336918405,-10000.0,0.00033217,120]
[333672622,1722336918430,-17866.54281605,0.00033217,120]
[333672623,1722336918456,-35927.65593249,0.00033217,31]
[333672624,1722336918482,-223215.41755082,0.00033217,30]
[333672625,1722336918508,-12000.0,0.00033217,32]
[333672626,1722336918535,-5000.0,0.00033217,120]
[333672627,1722336918562,-91980.40683898,0.00033217,30]
[333672628,1722336918589,-27680.57330311,0.00033217,30]
[333672629,1722336918616,-3659.42012149,0.00033217,120]
[333672630,1722336918642,-100000.0,0.00033217,30]
[333672631,1722336918671,-100000.0,0.00033217,30]
[333672632,1722336918698,-100000.0,0.00033217,30]
[333672633,1722336918723,-349.0,0.00033217,30]
[333672634,1722336918748,-1748.0,0.00033217,30]
[333672635,1722336918774,-1748.0,0.00033217,30]
[333672636,1722336918932,-1748.0,0.00033217,30]
[333672637,1722336918958,-588.0,0.00033217,30]
[333672638,1722336918983,-1988.0,0.00033217,120]
[333672639,1722336919010,-160143.63674313,0.00033217,120]
[333672640,1722336919036,-1000.0,0.00033217,30]
[333672641,1722336919062,-1000.0,0.00033217,30]
[333672642,1722336919088,-1000.0,0.00033217,30]
[333672643,1722336919113,-1000.0,0.00033217,30]
[333672644,1722336919139,-1000.0,0.00033217,30]
[333672645,1722336919164,-1000.0,0.00033217,30]
[333672646,1722336919190,-1000.0,0.00033217,30]
[333672647,1722336919215,-1000.0,0.00033217,30]
[333672648,1722336919240,-1000.0,0.00033217,30]
[333672649,1722336919266,-1000.0,0.00033217,30]
[333672650,1722336919291,-1000.0,0.00033217,30]
[333672651,1722336919319,-1000.0,0.00033217,30]
[333672652,1722336919345,-1000.0,0.00033217,30]
[333672653,1722336919372,-1000.0,0.00033217,30]
[333672654,1722336919398,-1000.0,0.00033217,30]
[333672655,1722336919425,-1000.0,0.00033217,30]
[333672656,1722336919451,-1000.0,0.00033217,30]
[333672657,1722336919477,-1000.0,0.00033217,30]
[333672658,1722336919504,-1000.0,0.00033217,30]
[333672659,1722336919531,-1000.0,0.00033217,30]
[333672660,1722336919557,-1000.0,0.00033217,30]
[333672661,1722336919585,-1000.0,0.00033217,30]
[333672662,1722336919611,-1000.0,0.00033217,30]
[333672663,1722336919638,-1000.0,0.00033217,30]
[333672664,1722336919664,-1673.300359,0.00033217,30]
[333672665,1722336919691,-400.0,0.00033217,30]
[333672666,1722336919716,-400.0,0.00033217,30]
[333672667,1722336919742,-679.107538,0.00033217,30]
[333672668,1722336924960,505.69,0.00033217,60]
[333672669,1722336938884,-664.57739026,0.000269,30]
[333672670,1722336939093,-459.647288,0.00026999,120]
[333672671,1722336939119,-1000.0,0.00027,30]
[333672672,1722336939149,-4000.0,0.00027397,30]
[333672673,1722336939177,-1800.0,0.00029,30]
[333672674,1722336939204,-200.0,0.00029874,60]
[333672675,1722336939233,-50000.0,0.0003,30]
[333672676,1722336939261,-160.0,0.0003,30]
[333672677,1722336939287,-1800.0,0.0003,31]
[333672678,1722336939315,-170.83333333,0.0003,120]
[333672679,1722336939343,-1026.84,0.0003,30]
[333672680,1722336939370,-388.0,0.0003063,60]
[333672681,1722336939395,-358.67,0.00030658,120]
[333672682,1722336939421,-170.83333333,0.00030849,120]
[333672683,1722336939451,-50000.0,0.00031,31]
[333672684,1722336939477,-408.3,0.00031,120]
[333672685,1722336939504,-170.83333333,0.00031699,120]
[333672686,1722336939534,-50000.0,0.00032,32]
[333672687,1722336939562,-1800.0,0.00032,33]
[333672688,1722336939588,-334.37217766,0.00032,120]
[333672689,1722336939614,-1000.0,0.00032,120]
[333672690,1722336939640,-1092.08808507,0.00032,33]
[333672691,1722336939667,-170.83333333,0.00032548,120]
[333672692,1722336939693,-3776.0,0.000327,35]
[333672693,1722336939719,-22488.26779968,0.00032865,30]
[333672694,1722336939745,-2607.58,0.00032876,120]
[333672695,1722336939770,-2607.58,0.00032876,120]
[333672696,1722336939796,-2607.58,0.00032876,120]
[333672697,1722336939822,-2607.58,0.00032876,120]
[333672698,1722336939847,-2607.58,0.00032876,120]
[333672699,1722336939872,-2607.58,0.00032876,120]
[333672700,1722336939896,-2607.58,0.00032876,120]
[333672701,1722336939921,-2607.58,0.00032876,120]
[333672702,1722336939946,-2607.58,0.00032876,120]
[333672703,1722336939971,-2607.58,0.00032876,120]
[333672704,1722336939995,-2607.58,0.00032876,120]
[333672705,1722336940024,-2607.58,0.00032876,120]
[333672706,1722336940048,-2607.58,0.00032876,120]
[333672707,1722336940074,-2607.58,0.00032876,120]
[333672708,1722336940100,-2607.58,0.00032876,120]
[333672709,1722336940125,-2607.58,0.00032876,120]
[333672710,1722336940151,-2607.58,0.00032876,120]
[333672711,1722336940179,-2607.58,0.00032876,120]
[333672712,1722336940204,-2607.58,0.00032876,120]
[333672713,1722336940228,-2607.58,0.00032876,120]
[333672714,1722336940253,-2607.58,0.00032876,120]
[333672715,1722336940277,-2607.58,0.00032876,120]
[333672716,1722336940302,-2607.58,0.00032876,120]
[333672717,1722336940329,-2607.78975713,0.00032876,120]
[333672718,1722336940355,-251.0,0.0003288,120]
[333672719,1722336940381,-280826.39105739,0.000329,30]
[333672720,1722336940412,-50000.0,0.00033,33]
[333672721,1722336940438,-1000.0,0.00033,120]
[333672722,1722336940465,-6357.6,0.00033151,120]
[333672723,1722336940492,-500.19,0.00033151,120]
[333672724,1722336940530,-170.83333333,0.00033397,120]
[333672725,1722336940556,-31853.22682,0.000338,60]
[333672726,1722336940587,-50000.0,0.00034,34]
[333672727,1722336940612,-500.0,0.00034,120]
[333672728,1722336940638,-1852.0594822,0.00034,120]
[333672729,1722336940664,-170.83333333,0.00034247,120]
[333672730,1722336940693,-2254.02116705,0.0003452,30]
[333672731,1722336940720,-5209.1335513,0.00034784,31]
[333672732,1722336940747,-36852.55866,0.000348,60]
[333672733,1722336940778,-50000.0,0.00035,35]
[333672734,1722336940806,-3643.0,0.00035,60]
[333672735,1722336940831,-46622.486351,0.00035,30]
[333672736,1722336940857,-707.20819684,0.00035,120]
[333672737,1722336940883,-17262.36079022,0.00035,30]
[333672738,1722336940909,-10053.26030201,0.00035,30]
[333672739,1722336940934,-1000.0,0.00035,120]
[333672740,1722336940958,-285.03372339,0.00035,90]
[333672741,1722336940983,-2012.0,0.00035,120]
[333672742,1722336941007,-3375.15364061,0.00035,120]
[333672743,1722336941032,-499999.0,0.00035,30]
[333672744,1722336941059,-499999.0,0.00035,30]
[333672745,1722336941086,-19444.8366073,0.00035,30]
[333672746,1722336941111,-5259.64667476,0.00035,30]
[333672747,1722336941136,-7796.27369395,0.00035,120]
[333672748,1722336941162,-587.26979871,0.00035,30]
[333672749,1722336941188,-862.76806645,0.00035,30]
[333672750,1722336941213,-34149.54134126,0.00035,120]
[333672751,1722336941238,-2948.95883395,0.00035,30]
[333672752,1722336941263,-170.83333333,0.00035096,120]
[333672753,1722336941288,-6854.74395422,0.000351,30]
[333672754,1722336941320,-2600.13977537,0.00035498,48]
[333672755,1722336941348,-23229.48124403,0.000358,60]
[333672756,1722336941374,-170.83333333,0.00035945,120]
[333672757,1722336941405,-50000.0,0.00036,36]
[333672758,1722336941431,-2000.0,0.00036,120]
[333672759,1722336941457,-500.0,0.00036,120]
[333672760,1722336941482,-672.54118988,0.00036,120]
[333672761,1722336941508,-4154.7,0.00036114,54]
[333672762,1722336941534,-2254.02116705,0.0003652,30]
[333672763,1722336941562,-170.83333333,0.00036795,120]
[333672764,1722336941590,-36825.58829,0.000368,60]
[333672765,1722336941617,-5017.80164,0.00036822,30]
[333672766,1722336941648,-50000.0,0.00037,37]
[333672767,1722336941675,-1000000.0,0.00037,30]
[333672768,1722336941700,-273.48657459,0.00037,30]
[333672769,1722336941726,-177132.3216483,0.00037,60]
[333672770,1722336941750,-15395.87202001,0.00037,30]
[333672771,1722336941909,-3630.74506408,0.00037,120]
[333672772,1722336941936,-398633.6618192,0.000372,60]
[333672773,1722336941962,-531.0,0.000375,120]
[333672774,1722336941986,-393.11701252,0.000375,30]
[333672775,1722336942012,-170.83333333,0.00037644,120]
[333672776,1722336942037,-36853.82593,0.000378,60]
[333672777,1722336942063,-287.47806133,0.000379,120]
[333672778,1722336942088,-2286.01428923,0.000379,120]
[333672779,1722336942117,-50000.0,0.00038,38]
[333672780,1722336942142,-26839.1,0.00038,30]
[333672781,1722336942167,-303797.00708236,0.00038,30]
[333672782,1722336942193,-1012.0,0.00038,120]
[333672783,1722336942218,-958.16797371,0.00038,30]
[333672784,1722336942245,-323.39468812,0.00038,60]
[333672785,1722336942270,-10000.0,0.00038,120]
[333672786,1722336942296,-857032.58598651,0.00038,30]
[333672787,1722336946599,-142967.41401349,0.00038,30]
[333672788,1722336946625,-160.13513463,0.00038,30]
[333672789,1722336946653,-155.18416912,0.00038,120]
[333672790,1722336946681,-808.33293076,0.00038,120]
[333672791,1722336946708,-10200.0,0.00038,40]
[333672792,1722336946734,-2491.77673219,0.00038,30]
[333672793,1722336946760,-1000.00250907,0.00038,35]
[333672794,1722336946785,-2000.0,0.00038,30]
[333672795,1722336946811,-5000.0,0.000382,30]
[333672796,1722336946836,-202.00632506,0.000382,120]
[333672797,1722336946863,-1001.0,0.000383,30]
[333672798,1722336946891,-232134.85153039,0.000384,33]
[333672799,1722336946916,-1000.0,0.00038493,30]
[333672800,1722336946942,-170.83333333,0.00038493,120]
[333672801,1722336946968,-14007.20926749,0.000385,30]
[333672802,1722336946993,-2254.02116705,0.0003852,30]
[333672803,1722336947018,-645.07095109,0.000387,120]
[333672804,1722336947043,-38529.822186,0.000388,60]
[333672805,1722336947069,-1000.0,0.0003887,30]
[333672806,1722336947095,-28782.49529112,0.0003888,90]
[333672807,1722336947120,-92348.41595693,0.000389,30]
[333672808,1722336947149,-50000.0,0.00039,39]
[333672809,1722336947175,-1139.0,0.00039,120]
[333672810,1722336947200,-1457.83052226,0.00039,30]
[333672811,1722336947227,-159.29319603,0.00039,120]
[333672812,1722336947252,-500.0,0.00039,120]
[333672813,1722336947277,-1122.09372636,0.00039,120]
[333672814,1722336947303,-102711.7192037,0.00039,120]
[333672815,1722336947332,-1000000.0,0.00039,40]
[333672816,1722336947356,-123048.0,0.00039,30]
[333672817,1722336947382,-26884.10074163,0.00039,120]
[333672818,1722336947407,-84753.17664265,0.00039,30]
[333672819,1722336947432,-240.0,0.00039,120]
[333672820,1722336947458,-10200.0,0.00039,40]
[333672821,1722336947484,-151.0,0.00039041,120]
[333672822,1722336947510,-1000.0,0.00039247,30]
[333672823,1722336947535,-170.83333333,0.00039342,120]
[333672824,1722336947561,-569.47006535,0.000394,30]
[333672825,1722336947587,-1909.36395217,0.000395,30]
[333672826,1722336947612,-312.24940611,0.000395,30]
[333672827,1722336947638,-4532.4,0.00039529,74]
[333672828,1722336947663,-349.99,0.000396,120]
[333672829,1722336947689,-1000.0,0.00039623,30]
[333672830,1722336947715,-78626.52455457,0.000398,90]
[333672831,1722336947740,-151.10219036,0.000398,120]
[333672832,1722336947766,-38593.852938,0.000398,60]
[333672833,1722336947791,-31361.96831222,0.0003985,30]
[333672834,1722336947819,-1157.24658307,0.0003988,30]
[333672835,1722336947859,-2234.3458542,0.000399,120]
[333672836,1722336947896,-158.1943687,0.000399,30]
[333672837,1722336947935,-41265.70135705,0.000399,60]
[333672838,1722336947974,-2817381.97155452,0.0003998,30]
[333672839,1722336951285,-414152.98734443,0.0003998,30]
[333672840,1722336951333,-410.0,0.00039986,90]
[333672841,1722336951375,-250.0,0.00039999,30]
[333672842,1722336951419,-50000.0,0.0004,30]
[333672843,1722336951465,-50000.0,0.0004,40]
[333672844,1722336951507,-477.12749073,0.0004,30]
[333672845,1722336951555,-2927.00474326,0.0004,30]
[333672846,1722336951599,-1483.51624297,0.0004,30]
[333672847,1722336951640,-701.32048459,0.0004,30]
[333672848,1722336951681,-45633.47752054,0.0004,30]
[333672849,1722336951722,-500.0,0.0004,120]
[333672850,1722336951763,-3000.0,0.0004,120]
[333672851,1722336951806,-1062.91208073,0.0004,120]
[333672852,1722336951844,-1500000.0,0.0004,30]
[333672853,1722336951883,-5786.89875269,0.0004,120]